bitfinex/quotes_ETHUSD_20250526
["timestamp","ask_amount","ask_price","bid_price","bid_amount"]
[1748243804867,5.031279,2582.5,2582.4,0.77447335]
[1748243805288,5.031279,2582.5,2582.2,0.77450358]
[1748243805475,0.5031279,2582.4,2582.3,0.77450334]
[1748243806412,0.5031279,2582.4,2581.8,6.09]
[1748243806597,0.5031279,2582.4,2581.6,6.09]
[1748243807113,1.621,2582.3,2582.1,0.77454026]
[1748243807316,1.621,2582.3,2582.2,0.77453334]
[1748243807501,2.22011279,2582.3,2582.2,0.77453334]
[1748243807826,2.22011279,2582.3,2582.0,0.77459333]
[1748243808181,2.22011279,2582.3,2581.9,0.77461143]
[1748243808373,2.22011279,2582.3,2582.0,0.77458411]
[1748243808710,2.22011279,2582.3,2581.8,0.77464435]
[1748243808871,0.77201128,2582.2,2581.8,0.77464435]
[1748243809221,0.77201128,2582.2,2581.9,0.77462096]
[1748243810488,0.77201128,2582.2,2581.3,0.77478554]
[1748243810489,1.544,2582.1,2581.3,0.77478554]
[1748243810671,1.544,2581.8,2581.1,0.05]
[1748243810875,2.094,2581.8,2581.7,0.77468334]
[1748243811097,5.961,2581.8,2581.6,0.77470114]
[1748243811374,5.961,2581.8,2581.6,0.77470708]
[1748243811588,5.961,2581.8,2581.6,0.77469726]
[1748243811799,0.5961,2581.7,2581.6,0.77469726]
[1748243815725,1.6008,2582.1,2582.0,0.77459333]
[1748243815889,5.4678,2582.1,2582.0,0.77459333]
[1748243816231,5.4678,2582.1,2581.3,7.61988698]
[1748243816232,1.6008,2582.1,2581.7,0.77465969]
[1748243816409,1.6008,2582.1,2581.8,0.77464573]
[1748243816590,1.6008,2582.1,2581.9,0.77460649]
[1748243816792,0.22201128,2582.2,2582.1,0.77456333]
[1748243817524,0.6113344,2582.3,2582.2,0.77453334]
[1748243817727,1.5561,2582.5,2582.4,0.77447335]
[1748243817900,4.4783344,2582.7,2582.6,0.77441338]
[1748243818728,3.867,2582.7,2582.6,0.77441338]
[1748243819531,3.867,2582.7,2581.7,0.77468334]
[1748243819834,3.867,2582.7,2582.6,0.77441338]
[1748243820194,3.867,2582.7,2582.5,0.7744305]
[1748243820431,3.867,2582.7,2582.6,0.77441338]
[1748243820731,2.54358492,2583.1,2582.7,0.77438339]
[1748243820933,4.20788492,2583.1,2582.2,0.77452323]
[1748243821137,4.20788492,2583.1,2582.9,0.77430696]
[1748243821343,8.07488492,2583.1,2582.9,0.77430696]
[1748243821634,4.20788492,2583.1,2583.0,0.77429345]
[1748243821835,4.20788492,2583.1,2582.5,0.77444336]
[1748243822032,3.59655052,2583.1,2583.0,0.77429345]
[1748243822236,1.93225052,2583.1,2583.0,0.77429345]
[1748243823838,1.93225052,2583.1,2582.8,0.77434006]
[1748243823839,3.59755052,2583.1,2582.8,0.77434006]
[1748243824135,0.35975505,2583.0,2582.9,0.77432343]
[1748243824842,5.9572,2583.5,2583.1,0.77423476]
[1748243825010,0.55,2583.3,2582.3,0.77450334]
[1748243825204,0.55,2583.3,2582.9,0.77431924]
[1748243825454,0.55,2583.3,2583.0,0.77427228]
[1748243826501,0.55,2583.3,2582.9,0.77431174]
[1748243826715,0.82868723,2583.2,2582.8,0.77433957]
[1748243827756,1.513,2583.1,2582.9,0.77432255]
[1748243828653,1.513,2583.1,2582.8,0.7743451]
[1748243828863,1.513,2583.1,2582.3,0.77450334]
[1748243829017,0.55,2583.0,2582.6,0.77439217]
[1748243829360,0.78416872,2583.0,2582.5,0.77444293]
[1748243829563,3.8717042,2582.9,2582.2,0.77452636]
[1748243829765,0.55,2582.8,2582.5,0.77442774]
[1748243829916,4.416,2582.8,2582.5,0.77442774]
[1748243830116,0.59296,2582.7,2582.5,0.77442774]
[1748243830518,0.59296,2582.7,2582.6,0.77441338]
[1748243830830,2.43428723,2583.2,2583.0,0.77426821]
[1748243831150,5.4716,2583.2,2582.9,0.77430976]
[1748243831462,5.4716,2583.2,2582.4,0.77445335]
[1748243831767,5.4716,2583.2,2582.9,0.77430039]
[1748243832417,0.55,2583.1,2582.8,0.77435177]
[1748243832618,0.60216,2583.0,2582.8,0.77435177]
[1748243833160,0.60216,2583.0,2582.6,0.77440161]
[1748243833161,0.60216,2583.0,2582.7,0.77437236]
[1748243833561,0.60216,2583.0,2582.3,0.77447956]
[1748243833721,0.60216,2583.0,2582.8,0.77432646]
[1748243834361,0.60216,2583.0,2582.9,0.77432343]
[1748243835054,1.6056,2583.2,2583.0,0.77428552]
[1748243835365,1.6056,2583.2,2583.0,0.77427917]
[1748243835577,1.6056,2583.2,2582.9,0.77431156]
[1748243836279,0.55,2583.1,2581.8,6.86462837]
[1748243836420,0.55,2583.1,2582.3,0.77450334]
[1748243836798,0.55,2583.1,2582.8,0.77433275]
[1748243836799,0.76556,2583.1,2582.8,0.77433275]
[1748243836924,0.76556,2583.1,2582.2,6.86453298]
[1748243837127,1.6056,2583.2,2583.0,0.77429345]
[1748243837325,1.6056,2583.2,2583.1,0.77426348]
[1748243837631,1.6056,2583.2,2582.6,0.77440658]
[1748243837835,1.6056,2583.2,2583.0,0.7742839]
[1748243838356,1.6056,2583.2,2583.1,0.77426348]
[1748243838782,3.866,2583.4,2583.0,0.7742839]
[1748243838783,2.2166,2583.4,2583.0,0.7742839]
[1748243839078,0.60826,2583.3,2583.1,0.77426348]
[1748243839290,0.60826,2583.3,2583.2,0.7742335]
[1748243839942,1.6666,2583.4,2583.3,0.77420353]
[1748243840354,1.6284,2583.6,2583.0,0.77428594]
[1748243840558,1.6284,2583.6,2582.6,0.77440867]
[1748243840559,1.6284,2583.6,2583.5,0.7741332]
[1748243840725,0.55,2583.7,2583.4,0.77416014]
[1748243840924,0.55,2583.7,2583.3,0.77419795]
[1748243840925,0.55,2583.7,2583.5,0.77413507]
[1748243841126,0.21784,2583.6,2583.5,0.77413507]
[1748243841321,1.6284,2583.8,2583.7,0.77408367]
[1748243841572,0.05,2583.9,2583.8,0.77405371]
[1748243842261,0.05,2583.9,2583.6,0.77410612]
[1748243842440,0.05,2583.9,2583.7,0.77408364]
[1748243844068,0.05,2583.9,2583.1,6.09]
[1748243844264,0.05,2583.9,2583.0,0.77428001]
[1748243844265,0.55,2583.5,2583.2,0.77423203]
[1748243844450,0.21958,2583.4,2583.2,0.77423203]
[1748243844771,0.21958,2583.4,2583.1,0.77425012]
[1748243844968,0.21958,2583.4,2583.2,0.77420994]
[1748243845481,0.21958,2583.4,2582.5,6.86442526]
[1748243845636,0.55,2583.3,2582.9,0.77430047]
[1748243845975,0.55,2583.3,2582.7,0.77437761]
[1748243845976,1.06903917,2583.3,2583.1,0.77425792]
[1748243846132,0.55,2583.3,2583.1,0.77425792]
[1748243846334,0.76958,2583.4,2582.6,0.77441338]
[1748243846629,0.76958,2583.4,2583.1,0.77424718]
[1748243846832,0.76958,2583.4,2583.1,0.77425081]
[1748243847929,0.21958,2583.4,2583.3,0.77420353]
[1748243848257,0.21958,2583.4,2582.6,0.77439537]
[1748243848459,0.55,2583.5,2582.7,0.77438339]
[1748243848760,0.55,2583.5,2583.2,0.77421595]
[1748243849163,1.6458,2583.6,2583.4,0.77415933]
[1748243849388,1.6458,2583.6,2583.3,0.77419086]
[1748243849700,1.6458,2583.6,2583.1,0.77426255]
[1748243849997,1.56338,2583.5,2583.2,0.7742307]
[1748243850192,1.56338,2583.5,2583.0,0.77427782]
[1748243850369,1.56338,2583.5,2583.1,0.77424507]
[1748243850563,1.6458,2583.6,2583.5,0.7741436]
[1748243851195,1.6458,2583.6,2583.3,0.774181]
[1748243851395,1.6458,2583.6,2583.3,0.77419098]
[1748243851797,1.6458,2583.6,2583.4,0.77417109]
[1748243852093,1.6458,2583.6,2582.9,0.77432343]
[1748243852270,1.6458,2583.6,2583.3,0.77418396]
[1748243852474,1.6458,2583.6,2583.4,0.77414466]
[1748243852667,1.6458,2583.6,2583.4,0.77415805]
[1748243853709,1.6458,2583.6,2583.5,0.7741436]
[1748243854057,1.6458,2583.6,2583.4,0.7741689]
[1748243854410,2.65918,2583.6,2583.2,0.77421776]
[1748243854613,2.65918,2583.6,2583.3,0.77419811]
[1748243854810,2.65918,2583.6,2583.2,0.77421553]
[1748243855611,2.65918,2583.6,2583.3,0.77418095]
[1748243855772,1.6458,2583.6,2582.8,7.61943964]
[1748243855973,1.6458,2583.6,2583.5,0.7741436]
[1748243856805,1.6458,2583.6,2583.4,0.77416495]
[1748243857310,1.6458,2583.6,2583.1,0.77424861]
[1748243857517,1.6458,2583.6,2582.6,6.09]
[1748243857518,1.6458,2583.6,2583.4,0.77415631]
[1748243857725,0.62688,2583.5,2583.2,0.77420797]
[1748243858178,0.62688,2583.5,2583.3,0.77419873]
[1748243858580,0.62688,2583.5,2583.2,0.7742226]
[1748243859015,0.62688,2583.5,2583.0,0.77427267]
[1748243859181,0.777268,2583.4,2582.9,0.77432048]
[1748243859581,0.777268,2583.4,2583.1,0.774258]
[1748243860111,0.777268,2583.4,2583.2,0.77422643]
[1748243860668,0.777268,2583.4,2583.3,0.77420353]
[1748243860862,0.62688,2583.5,2583.4,0.77417356]
[1748243861068,0.6113344,2583.7,2583.6,0.77411363]
[1748243861283,6.0762344,2583.8,2583.5,0.77411838]
[1748243861966,6.0762344,2583.8,2583.2,3.29058342]
[1748243862162,6.0762344,2583.8,2583.5,0.77412673]
[1748243862467,0.61262344,2583.7,2583.6,0.77411363]
[1748243862985,0.61262344,2583.7,2583.5,0.77413196]
[1748243863899,0.61262344,2583.7,2583.5,0.7741307]
[1748243864223,0.61262344,2583.7,2583.3,0.77419616]
[1748243864385,0.61262344,2583.7,2583.2,0.77422016]
[1748243864731,0.99478822,2583.6,2583.2,0.77422016]
[1748243865169,0.99478822,2583.6,2582.9,0.77432343]
[1748243865376,1.5999,2583.8,2583.6,0.77408975]
[1748243866074,1.5999,2583.8,2583.5,0.77413036]
[1748243866269,0.55,2583.7,2583.3,0.77419806]
[1748243866524,0.55,2583.7,2582.7,6.09]
[1748243866811,1.6545,2583.4,2583.1,0.77424512]
[1748243867003,1.6545,2583.4,2583.0,0.77428159]
[1748243867398,1.6545,2583.4,2582.9,0.77429914]
[1748243867611,1.6545,2583.4,2583.1,0.77424408]
[1748243869122,1.6545,2583.4,2582.9,0.77430821]
[1748243869123,0.55,2583.3,2582.9,0.77430821]
[1748243869326,0.55,2583.1,2582.4,3.29058342]
[1748243869528,0.55,2582.9,2582.4,0.77445291]
[1748243869733,0.55,2582.9,2582.5,0.77444291]
[1748243870038,0.55,2582.9,2582.5,0.77444026]
[1748243870227,0.55,2582.9,2582.3,0.77450312]
[1748243870228,4.42172139,2582.9,2582.3,0.77450312]
[1748243870759,4.42172139,2582.9,2582.4,0.77447016]
[1748243870930,0.65489558,2582.8,2582.4,0.77447016]
[1748243871758,0.55,2582.7,2581.9,3.29058342]
[1748243871959,0.55,2582.7,2582.3,0.7744873]
[1748243872180,1.6213,2582.6,2581.9,0.77459672]
[1748243872318,0.76713,2582.5,2582.1,0.77454578]
[1748243873353,0.76713,2582.5,2582.0,0.77458046]
[1748243873538,0.76713,2582.5,2582.0,0.77459231]
[1748243874253,1.6165,2582.4,2581.7,0.77466626]
[1748243874556,0.56742134,2582.3,2581.9,0.77461703]
[1748243874757,0.55,2582.3,2582.0,0.77457936]
[1748243875130,0.6113344,2582.8,2582.2,3.29058342]
[1748243875318,1.6165,2582.7,2582.5,0.77442254]
[1748243875650,1.6165,2582.7,2582.0,3.29058342]
[1748243875858,1.6165,2582.7,2582.3,0.77448479]
[1748243876083,1.6165,2582.7,2582.4,0.77447012]
[1748243876277,9.032,2583.1,2582.6,0.77441338]
[1748243876278,1.5255,2582.9,2582.6,0.77441338]
[1748243876419,1.73305,2582.9,2582.6,0.77441338]
[1748243878331,1.73305,2582.9,2582.7,0.77436696]
[1748243878662,1.6166,2583.3,2583.0,0.7742676]
[1748243878819,3.866,2583.2,2583.0,0.7742676]
[1748243879018,3.866,2583.2,2582.9,0.77431114]
[1748243879459,1.6166,2583.3,2582.9,0.77431114]
[1748243879665,1.93225052,2583.5,2582.9,6.84745152]
[1748243879984,1.93225052,2583.5,2583.4,0.77417356]
[1748243881425,1.93225052,2584.0,2583.8,0.77405371]
[1748243882260,1.93225052,2584.0,2583.8,0.81275119]
[1748243882435,1.93225052,2584.0,2583.8,0.77405371]
[1748243882637,1.93225052,2584.0,2583.8,1.61361257]
[1748243884537,1.93225052,2584.0,2583.9,0.77402376]
[1748243886543,1.6124,2584.5,2584.0,0.77397141]
[1748243886740,1.6124,2584.5,2584.1,0.77396073]
[1748243886922,1.6124,2584.5,2584.2,0.77393038]
[1748243887422,1.6124,2584.5,2583.6,0.77411363]
[1748243887423,1.6124,2584.5,2583.7,6.84745152]
[1748243887630,1.6124,2584.5,2583.8,1.53621023]
[1748243887830,1.6124,2584.5,2584.3,0.77388406]
[1748243888066,1.6124,2584.5,2583.7,0.58358137]
[1748243888463,1.6124,2584.5,2584.4,0.77387401]
[1748243888854,1.6124,2584.5,2584.3,0.77389449]
[1748243889370,1.6124,2584.5,2584.3,0.77389596]
[1748243890161,1.6124,2584.5,2584.3,0.77389243]
[1748243890365,1.6124,2584.5,2584.4,0.77387401]
[1748243890864,1.5786,2584.7,2584.6,0.77381412]
[1748243891070,1.79646,2584.7,2584.6,0.77381412]
[1748243891373,0.05,2584.9,2584.8,0.77375425]
[1748243893051,0.55,2584.8,2584.5,0.77384245]
[1748243893561,0.55,2584.8,2584.5,0.77382325]
[1748243893767,0.05,2584.9,2584.5,0.77382325]
[1748243893927,0.05,2584.9,2584.1,6.84745152]
[1748243893928,0.05,2584.9,2584.8,0.77375425]
[1748243897339,0.05,2584.9,2584.8,0.8124356]
[1748243897540,0.05,2584.9,2584.8,1.35650966]
[1748243898743,0.05,2584.9,2584.8,9.82550966]
[1748243899869,0.05,2584.9,2584.8,10.21354503]
[1748243900165,0.05,2584.9,2584.8,1.74454503]
[1748243900363,0.05,2584.9,2584.8,10.21254503]
[1748243901064,0.05,2585.9,2584.8,10.21254503]
[1748243901266,0.05,2585.9,2585.8,0.77345502]
[1748243905869,0.05,2586.9,2586.8,0.77315602]
[1748243918815,1.6808,2586.9,2586.7,0.7731729]
[1748243919114,1.6808,2586.9,2586.8,0.77315602]
[1748243919313,1.6808,2586.9,2586.7,0.77316868]
[1748243919463,1.6808,2586.9,2585.9,0.77342511]
[1748243919663,1.6808,2586.9,2585.7,8.462]
[1748243920022,1.6808,2586.9,2586.5,0.77323224]
[1748243921080,0.55,2586.8,2586.4,0.77326657]
[1748243921281,0.55,2586.8,2586.5,0.7732455]
[1748243921504,1.543,2586.7,2585.8,0.77344749]
[1748243921806,0.55,2586.6,2586.4,0.77327379]
[1748243922003,0.2093,2586.5,2586.4,0.77327379]
[1748243923982,0.05,2586.9,2586.2,0.77333539]
[1748243924213,0.05,2586.9,2586.8,0.77315602]
[1748243926924,0.55,2586.8,2586.5,0.77323995]
[1748243927426,0.55,2586.8,2586.6,0.77321138]
[1748243927586,0.55,2586.8,2586.1,0.77336529]
[1748243927587,0.55,2586.8,2586.5,0.77322928]
[1748243927790,0.21926,2586.8,2586.6,0.77319406]
[1748243928104,0.21926,2586.8,2586.7,0.77318591]
[1748243929226,0.21926,2586.8,2586.6,0.77320712]
[1748243929913,0.21926,2586.8,2586.7,0.77318591]
[1748243931124,0.21926,2586.8,2586.0,6.09]
[1748243931125,0.21926,2586.8,2586.6,0.77320502]
[1748243933335,0.21926,2586.8,2586.6,0.77321093]
[1748243933895,0.76926,2586.8,2586.0,6.09]
[1748243934130,1.5123,2586.7,2585.7,9.95]
[1748243934806,1.5123,2586.7,2586.3,0.77330173]
[1748243935027,1.5123,2586.7,2586.4,0.77326362]
[1748243935189,1.5123,2586.7,2586.6,0.7732158]
[1748243935392,1.72353,2586.7,2586.6,0.7732158]
[1748243935584,1.5723,2586.9,2586.6,0.77319053]
[1748243936229,1.5723,2586.9,2586.7,0.77317552]
[1748243936994,1.5723,2586.9,2586.6,0.7732023]
[1748243937397,1.5723,2586.9,2586.7,0.77318186]
[1748243938035,1.5723,2586.9,2586.6,0.7732019]
[1748243938205,1.5723,2586.9,2586.7,0.77317908]
[1748243938533,0.05,2586.9,2586.8,0.77315602]
[1748243941020,3.91567594,2586.9,2585.9,6.09]
[1748243941200,2.49316759,2586.8,2586.3,0.77328971]
[1748243941402,2.49316759,2586.8,2586.2,0.77331716]
[1748243941602,2.49316759,2586.8,2586.5,0.77321743]
[1748243941802,2.49316759,2586.8,2586.6,0.77321077]
[1748243942353,2.49316759,2586.8,2586.5,0.77323735]
[1748243942517,0.25431676,2586.7,2586.5,0.77323735]
[1748243943444,1.5299,2586.6,2585.5,0.39140467]
[1748243943602,2.0799,2586.5,2586.0,0.77338881]
[1748243943941,5.9399,2586.5,2586.1,0.77336414]
[1748243944500,5.9399,2586.5,2586.0,0.77338785]
[1748243944737,0.59399,2586.4,2586.0,0.77338785]
[1748243945807,0.59399,2586.4,2585.6,0.77351485]
[1748243946007,0.59399,2586.4,2585.7,0.77348493]
[1748243946239,2.2224344,2586.7,2585.9,0.77342511]
[1748243946427,2.2224344,2586.7,2586.6,0.7732158]
[1748243946625,0.05,2586.9,2586.7,0.77318485]
[1748243946840,1.6611,2586.9,2586.8,0.77315602]
[1748243947139,0.05,2586.9,2586.8,0.77315602]
[1748243951825,0.05,2586.9,2586.7,0.77317559]
[1748243952750,0.05,2586.9,2586.8,0.77315602]
[1748243953852,0.05,2586.9,2586.0,4.581]
[1748243954451,3.86592996,2586.7,2585.6,8.44]
[1748243954664,0.55,2586.7,2585.5,1.22390011]
[1748243955423,1.5304,2586.4,2585.5,0.45036171]
[1748243955661,1.5304,2586.4,2586.2,0.77331309]
[1748243957366,1.5304,2586.4,2586.1,0.77335387]
[1748243957663,0.20804,2586.3,2586.1,0.77335387]
[1748243957863,5.3904,2586.6,2585.7,0.77348493]
[1748243958063,2.0804,2586.6,2586.5,0.77324569]
[1748243958275,1.5304,2586.6,2586.5,0.77324569]
[1748243959462,1.5948,2586.9,2586.7,0.77317033]
[1748243959662,0.54548,2586.8,2586.7,0.77317033]
[1748243960829,0.54548,2586.8,2586.5,0.77323384]
[1748243961020,1.5948,2586.9,2585.9,12.93745152]
[1748243961225,0.05,2586.9,2586.8,0.77315602]
[1748243968780,0.05,2586.9,2586.8,0.81181013]
[1748243969285,0.05,2586.9,2586.8,0.77315602]
[1748243974362,0.05,2586.9,2586.3,2.73246866]
[1748243974580,1.93225052,2587.8,2587.7,0.77288711]
[1748243975092,0.51886673,2587.8,2587.7,1.53786354]
[1748243975295,0.40777856,2587.8,2587.7,1.53786354]
[1748243975519,0.40777856,2587.8,2587.7,1.14941562]
[1748243975818,0.6113344,2588.7,2588.4,0.7726781]
[1748243976005,0.6113344,2588.7,2588.4,4.05410737]
[1748243976318,3.1460674,2588.9,2588.4,4.05410737]
[1748243976812,3.1460674,2588.9,2588.4,0.7726781]
[1748243977019,3.1460674,2588.9,2588.4,12.49310737]
[1748243978123,2.51528367,2588.8,2588.7,0.77258855]
[1748243982205,0.05,2588.9,2588.7,0.77258855]
[1748243984133,0.05,2588.9,2588.2,8.0]
[1748243984292,0.05,2588.9,2588.2,16.422]
[1748243984734,0.05,2588.9,2588.8,0.77255871]
[1748243985731,1.6541,2588.9,2588.8,0.77255871]
[1748243986289,1.6541,2588.9,2587.7,7.96206424]
[1748243986513,1.6541,2588.9,2587.8,4.565]
[1748243986690,1.6541,2588.9,2588.5,0.77264751]
[1748243987124,1.6541,2588.9,2587.9,9.0]
[1748243987337,5.51676928,2588.9,2587.9,1.77280489]
[1748243987522,1.6541,2588.9,2588.4,0.77267723]
[1748243987910,1.6541,2588.9,2587.9,1.77279988]
[1748243988113,1.6541,2588.9,2588.4,0.77265391]
[1748243988310,5.51678438,2588.9,2588.3,0.77268895]
[1748243988507,1.6541,2588.9,2588.4,0.77267657]
[1748243988821,1.6541,2588.9,2588.3,0.77268146]
[1748243989020,1.6541,2588.9,2588.4,0.77267131]
[1748243989219,0.55166975,2588.8,2588.4,0.77267131]
[1748243989405,1.6541,2588.9,2588.0,6.81265985]
[1748243989606,1.6541,2588.9,2588.8,0.77255871]
[1748243989831,1.6541,2588.9,2588.7,0.77257722]
[1748243994939,1.6541,2588.9,2588.6,0.77261547]
[1748243995125,1.6541,2588.9,2588.0,12.564]
[1748243995512,0.05,2588.9,2588.2,6.81265985]
[1748243998720,0.05,2588.9,2588.0,4.564]
[1748243999208,0.05,2588.9,2588.6,0.7726001]
[1748243999828,0.05,2588.9,2588.7,0.77258576]
[1748244000432,0.05,2588.9,2588.8,0.77255871]
[1748244001072,0.05,2588.9,2588.8,15.62384209]
[1748244001229,0.05,2588.9,2588.8,15.58521856]
[1748244001633,0.05,2588.9,2588.8,8.77255871]
[1748244002451,0.05,2588.9,2588.8,0.77255871]
[1748244003880,1.6185,2588.9,2588.8,0.77255871]
[1748244004176,1.6185,2588.9,2588.5,8.0]
[1748244004177,1.6185,2588.9,2588.7,0.77258583]
[1748244004335,1.6185,2588.9,2588.8,0.77255871]
[1748244005378,1.6185,2588.9,2588.6,0.77260643]
[1748244005911,1.6185,2588.9,2588.4,0.77265034]
[1748244006041,0.54810029,2588.8,2588.4,0.77265034]
[1748244006884,1.5565,2588.7,2588.4,0.77267712]
[1748244007255,1.5565,2588.7,2588.5,0.77264472]
[1748244007456,0.05,2588.9,2588.8,0.77255871]
[1748244007757,0.05,2588.9,2588.8,0.81118357]
[1748244008078,0.05,2588.9,2588.8,4.04822972]
[1748244008690,0.05,2588.9,2588.8,0.77255871]
[1748244012671,0.05,2588.9,2587.9,5.55]
[1748244012897,1.633,2588.8,2588.1,0.77276766]
[1748244013082,1.633,2588.8,2588.1,1.4500806]
[1748244013262,1.633,2588.8,2588.6,0.77259731]
[1748244013458,1.633,2588.8,2588.1,1.4500806]
[1748244013459,1.633,2588.8,2588.7,0.77258855]
[1748244013995,1.633,2588.8,2588.5,0.77261911]
[1748244014198,0.05,2588.9,2588.1,0.77275713]
[1748244014503,0.05,2588.9,2588.7,0.77257462]
[1748244014903,0.05,2588.9,2588.4,0.77267429]
[1748244015076,1.5485,2588.5,2587.9,1.0]
[1748244015277,0.55,2588.3,2587.9,1.77281005]
[1748244015677,0.55,2588.3,2588.0,0.77279587]
[1748244015909,0.20985,2588.2,2588.0,0.77279587]
[1748244016671,0.20985,2588.2,2587.9,1.0]
[1748244017002,0.20985,2588.2,2588.0,0.77279737]
[1748244017169,5.9222976,2588.1,2587.9,1.0]
[1748244017369,2.0584,2588.0,2587.9,1.0]
[1748244017678,2.96664448,2588.0,2587.9,1.0]
[1748244018079,2.0584,2588.0,2587.9,1.0]
[1748244019006,5.92238763,2588.0,2587.9,1.0]
[1748244019410,2.0584,2588.0,2587.9,1.0]
[1748244021188,9.77938763,2588.0,2587.9,1.0]
[1748244021400,5.9154,2588.0,2587.9,1.0]
[1748244021590,7.59573008,2588.0,2587.9,1.0]
[1748244021802,11.45971771,2588.0,2587.9,1.0]
[1748244022003,7.60271771,2588.0,2587.9,1.0]
[1748244022209,11.45971771,2588.0,2587.9,1.0]
[1748244023436,2.0584,2588.0,2587.9,1.0]
[1748244024612,5.92238763,2588.0,2587.9,1.0]
[1748244026117,1.5402,2587.7,2587.2,0.77302328]
[1748244026442,0.55,2587.6,2586.6,9.0]
[1748244026735,1.5402,2587.3,2586.5,0.77324569]
[1748244026935,1.5402,2587.3,2586.6,0.7731871]
[1748244027432,1.5402,2587.3,2586.9,0.77310654]
[1748244027739,1.5402,2587.3,2586.8,0.77313813]
[1748244027740,1.5402,2587.3,2586.8,0.77314776]
[1748244028137,1.6553,2587.0,2586.5,0.77322844]
[1748244028340,8.82572394,2586.9,2586.3,0.77330549]
[1748244028500,8.82572394,2586.9,2586.4,0.7732685]
[1748244028501,0.55,2586.7,2586.4,0.7732685]
[1748244028702,1.6553,2586.8,2586.1,0.05]
[1748244029041,0.55,2586.7,2586.1,0.82334219]
[1748244029237,0.55,2586.7,2586.2,0.77332781]
[1748244029439,0.55,2586.7,2586.1,0.05]
[1748244029440,0.22053,2586.6,2586.1,0.82335241]
[1748244029751,1.6032,2586.5,2586.1,0.82335723]
[1748244030100,0.55,2586.4,2586.1,0.82335723]
[1748244030305,0.55,2586.4,2586.1,0.05]
[1748244030703,0.55,2586.2,2586.1,0.05]
[1748244031018,2.80932,2586.2,2586.1,0.05]
[1748244031656,6.67599697,2586.2,2586.1,0.05]
[1748244031811,2.80932,2586.2,2586.1,0.05]
[1748244032009,13.49019175,2586.2,2586.1,0.05]
[1748244032314,0.55,2585.4,2585.2,2.48626055]
[1748244032649,0.55,2585.4,2585.2,3.25988574]
[1748244032960,1.5791,2586.0,2585.2,3.48626055]
[1748244033272,1.5791,2586.0,2585.9,0.77342511]
[1748244034752,1.5791,2586.0,2585.8,0.77344446]
[1748244035465,1.5791,2586.0,2585.9,0.77342511]
[1748244036374,1.5791,2586.0,2585.8,0.77344277]
[1748244036576,1.5791,2586.0,2585.9,0.77342511]
[1748244036742,1.5476,2586.2,2585.9,0.77342393]
[1748244037095,1.5476,2586.2,2585.4,0.7735626]
[1748244037096,1.5476,2586.5,2586.4,0.77326945]
[1748244037314,2.08836,2586.5,2586.3,0.77329336]
[1748244038087,2.08836,2586.5,2586.3,0.77328551]
[1748244038291,2.08836,2586.5,2585.8,1.77343755]
[1748244038292,1.561,2586.7,2586.1,0.77334562]
[1748244038585,1.561,2586.7,2586.5,0.77322299]
[1748244038789,5.43874903,2587.4,2586.8,0.77313094]
[1748244038989,0.5438749,2587.3,2586.7,0.77316453]
[1748244039197,1.6368,2587.1,2586.1,1.0]
[1748244039393,0.55,2586.8,2586.2,0.77333539]
[1748244039557,0.55,2586.8,2586.3,0.77330549]
[1748244039756,0.55,2586.8,2585.9,0.77342511]
[1748244039956,0.55,2586.6,2585.8,1.0]
[1748244040193,0.55,2586.8,2585.9,0.77342511]
[1748244040498,0.55,2586.8,2585.9,8.77342511]
[1748244040706,0.55,2586.8,2586.3,0.7732952]
[1748244041096,0.55,2586.8,2586.4,0.77327206]
[1748244041260,1.6368,2586.9,2586.1,6.81419478]
[1748244041599,1.6368,2586.9,2586.7,0.38658834]
[1748244041902,0.55,2586.8,2586.4,0.38662622]
[1748244042094,0.55,2586.8,2586.4,0.38662419]
[1748244042460,0.55,2586.8,2586.5,0.38661474]
[1748244042791,0.21868,2586.7,2586.4,0.38663257]
[1748244043004,0.21868,2586.7,2586.5,0.38662064]
[1748244043724,0.21868,2586.7,2586.4,0.38663313]
[1748244043928,0.21868,2586.7,2586.2,0.38666734]
[1748244044302,0.21868,2586.7,2586.4,0.38663534]
[1748244044501,0.21868,2586.7,2586.5,0.3866225]
[1748244044703,0.21868,2586.7,2586.4,0.38663707]
[1748244045108,0.21868,2586.7,2586.6,0.3866079]
[1748244045313,1.6368,2586.9,2586.2,8.0]
[1748244045625,3.86,2587.2,2586.2,8.0]
[1748244046125,0.55,2587.0,2586.2,8.0]
[1748244047206,1.5848,2587.1,2586.2,8.0]
[1748244047405,0.55,2587.0,2586.2,8.0]
[1748244047704,0.55,2586.8,2586.0,1.0]
[1748244049330,0.55,2586.8,2586.5,0.38661247]
[1748244050237,1.5848,2587.1,2586.9,0.38655264]
[1748244050594,1.5848,2587.1,2586.6,0.3866079]
[1748244050794,0.54448,2587.0,2586.6,0.3866079]
[1748244051235,0.54448,2587.0,2586.7,0.38659295]
[1748244052356,0.55,2586.9,2586.6,0.38660715]
[1748244052549,0.55,2586.9,2586.5,0.3866178]
[1748244053034,0.55,2586.9,2586.6,0.38660642]
[1748244053818,0.495448,2586.8,2586.6,0.38660642]
[1748244055908,0.495448,2586.8,2586.7,0.38659295]
[1748244056118,0.55,2586.9,2586.7,0.38659295]
[1748244056922,1.5848,2587.1,2586.2,1.0]
[1748244057127,0.55,2587.0,2586.8,0.38656868]
[1748244057325,0.55,2587.0,2586.2,1.0]
[1748244057528,0.55,2586.8,2586.5,0.38661208]
[1748244057753,0.55,2586.8,2586.4,0.38663257]
[1748244058123,0.55,2586.8,2586.5,0.38661876]
[1748244059667,0.55,2586.8,2586.2,1.0]
[1748244059668,0.55,2586.8,2585.9,8.0]
[1748244059879,0.55,2586.8,2586.5,0.38661504]
[1748244060256,0.55,2586.8,2586.6,0.38660674]
[1748244060569,0.55,2586.8,2586.6,0.38660557]
[1748244060928,0.55,2586.8,2586.0,0.3866976]
[1748244061267,0.55,2586.8,2586.5,0.38661491]